[Event "Titled Tuesday Blitz January 25 2022"]
[White "Kucuksari, Kaan"]
[Black "Kazarian, Anna-Maja"]
[WhiteFideId "6380166"]
[BlackFideId "1033689"]
[WhiteElo "2305"]
[BlackElo "2004"]
[Result "1-0"]
[Round "01"]
[TimeControl "180+1"]
[Date "2022.01.26"]
[WhiteClock "0:01:26"]
[BlackClock "0:00:13"]

1. d4 {[%clk 0:02:59]}  d5 {[%clk 0:02:59]} 2. c4 {[%clk 0:02:59]}  e6 {[%clk 0:02:59]} 3. Nf3 {[%clk 0:02:59]}  Nf6 {[%clk 0:03:00]} 4. g3 {[%clk 0:03:00]}  Bb4+ {[%clk 0:03:00]} 5. Bd2 {[%clk 0:02:59]}  Be7 {[%clk 0:03:00]} 6. Bg2 {[%clk 0:03:00]}  O-O {[%clk 0:03:01]} 7. O-O {[%clk 0:03:00]}  c6 {[%clk 0:02:59]} 8. Qc2 {[%clk 0:03:00]}  Nbd7 {[%clk 0:02:59]} 9. Bf4 {[%clk 0:03:00]}  Ne4 {[%clk 0:02:59]} 10. Nfd2 {[%clk 0:02:53]}  f5 {[%clk 0:02:58]} 11. Nxe4 {[%clk 0:02:54]}  fxe4 {[%clk 0:02:57]} 12. f3 {[%clk 0:02:54]}  exf3 {[%clk 0:02:53]} 13. Bxf3 {[%clk 0:02:49]}  Nf6 {[%clk 0:02:46]} 14. Nd2 {[%clk 0:02:46]}  Bd6 {[%clk 0:02:40]} 15. Bxd6 {[%clk 0:02:42]}  Qxd6 {[%clk 0:02:41]} 16. c5 {[%clk 0:02:42]}  Qe7 {[%clk 0:02:39]} 17. e4 {[%clk 0:02:39]}  e5 {[%clk 0:02:34]} 18. Rae1 {[%clk 0:02:29]}  exd4 {[%clk 0:02:17]} 19. exd5 {[%clk 0:02:28]}  Qd7 {[%clk 0:02:15]} 20. d6 {[%clk 0:02:21]}  Qh3 {[%clk 0:02:11]} 21. Qc4+ {[%clk 0:02:17]}  Kh8 {[%clk 0:02:07]} 22. Qxd4 {[%clk 0:02:11]}  Bg4 {[%clk 0:01:47]} 23. Bg2 {[%clk 0:02:04]}  Qh5 {[%clk 0:01:46]} 24. Re7 {[%clk 0:02:00]}  Rae8 {[%clk 0:01:37]} 25. Ne4 {[%clk 0:01:55]}  Qg6 {[%clk 0:00:43]} 26. Nxf6 {[%clk 0:01:50]}  Rxf6 {[%clk 0:00:32]} 27. Rxf6 {[%clk 0:01:31]}  gxf6 {[%clk 0:00:24]} 28. Be4 {[%clk 0:01:31]}  Qh6 {[%clk 0:00:13]} 29. Rxe8+ {[%clk 0:01:26]} 1-0


[Site "https://www.chess.com"]

[Event "Titled Tuesday Blitz January 25 2022"]
[White "Lewicki, Miroslaw"]
[Black "Kollars, Dmitrij"]
[WhiteFideId "1113380"]
[BlackFideId "12909572"]
[WhiteElo "2283"]
[BlackElo "2584"]
[Result "0-1"]
[Round "01"]
[TimeControl "180+1"]
[Date "2022.01.26"]
[WhiteClock "0:00:46"]
[BlackClock "0:00:40"]

1. g3 {[%clk 0:02:55]}  d5 {[%clk 0:02:58]} 2. Bg2 {[%clk 0:02:55]}  e5 {[%clk 0:02:58]} 3. d3 {[%clk 0:02:55]}  c6 {[%clk 0:02:57]} 4. Nf3 {[%clk 0:02:55]}  Bd6 {[%clk 0:02:57]} 5. O-O {[%clk 0:02:55]}  Nf6 {[%clk 0:02:56]} 6. b3 {[%clk 0:02:55]}  O-O {[%clk 0:02:54]} 7. Bb2 {[%clk 0:02:55]}  Qe7 {[%clk 0:02:50]} 8. c4 {[%clk 0:02:50]}  Re8 {[%clk 0:02:41]} 9. cxd5 {[%clk 0:02:50]}  cxd5 {[%clk 0:02:42]} 10. Nc3 {[%clk 0:02:50]}  Nc6 {[%clk 0:02:40]} 11. Rc1 {[%clk 0:02:50]}  h6 {[%clk 0:02:39]} 12. Nb5 {[%clk 0:02:40]}  Bb8 {[%clk 0:02:37]} 13. d4 {[%clk 0:02:30]}  e4 {[%clk 0:02:33]} 14. Ne5 {[%clk 0:02:30]}  Bd7 {[%clk 0:02:18]} 15. Ba3 {[%clk 0:02:24]}  Qe6 {[%clk 0:02:15]} 16. Nxd7 {[%clk 0:02:03]}  Qxd7 {[%clk 0:02:14]} 17. e3 {[%clk 0:02:02]}  h5 {[%clk 0:02:06]} 18. f3 {[%clk 0:02:01]}  h4 {[%clk 0:01:50]} 19. fxe4 {[%clk 0:02:01]}  Nxe4 {[%clk 0:01:51]} 20. gxh4 {[%clk 0:01:52]}  a6 {[%clk 0:01:28]} 21. Bxe4 {[%clk 0:01:23]}  Rxe4 {[%clk 0:01:23]} 22. Nc3 {[%clk 0:01:23]}  Rxe3 {[%clk 0:00:46]} 23. Qh5 {[%clk 0:01:22]}  Bxh2+ {[%clk 0:00:43]} 24. Kxh2 {[%clk 0:00:54]}  Qh3+ {[%clk 0:00:42]} 25. Kg1 {[%clk 0:00:55]}  Rg3+ {[%clk 0:00:40]} 26. Kf2 {[%clk 0:00:55]}  Rg2+ {[%clk 0:00:39]} 27. Ke1 {[%clk 0:00:54]}  Qg3+ {[%clk 0:00:40]} 28. Kd1 {[%clk 0:00:46]}  Qd3+ {[%clk 0:00:40]} 29. Ke1 {[%clk 0:00:46]}  Qd2# {[%clk 0:00:40]} 0-1


[Site "https://www.chess.com"]

[Event "Titled Tuesday Blitz January 25 2022"]
[White "Ljukin, Sergei"]
[Black "Sychev, Klementy"]
[WhiteFideId "14102200"]
[BlackFideId "4114060"]
[WhiteElo "2312"]
[BlackElo "2564"]
[Result "0-1"]
[Round "01"]
[TimeControl "180+1"]
[Date "2022.01.26"]
[WhiteClock "0:00:02"]
[BlackClock "0:00:01"]

1. e4 {[%clk 0:02:59]}  g6 {[%clk 0:02:59]} 2. d4 {[%clk 0:02:58]}  Bg7 {[%clk 0:03:00]} 3. Nc3 {[%clk 0:02:57]}  c6 {[%clk 0:03:00]} 4. Bc4 {[%clk 0:02:56]}  d5 {[%clk 0:02:59]} 5. exd5 {[%clk 0:02:55]}  b5 {[%clk 0:02:59]} 6. Be2 {[%clk 0:02:54]}  b4 {[%clk 0:02:59]} 7. Na4 {[%clk 0:02:54]}  cxd5 {[%clk 0:02:56]} 8. a3 {[%clk 0:02:54]}  bxa3 {[%clk 0:02:56]} 9. Rxa3 {[%clk 0:02:54]}  Nc6 {[%clk 0:02:56]} 10. Nf3 {[%clk 0:02:53]}  Nf6 {[%clk 0:02:56]} 11. O-O {[%clk 0:02:52]}  O-O {[%clk 0:02:56]} 12. Nc5 {[%clk 0:02:51]}  a5 {[%clk 0:02:46]} 13. c3 {[%clk 0:02:46]}  Qc7 {[%clk 0:02:42]} 14. b4 {[%clk 0:02:40]}  Bf5 {[%clk 0:02:36]} 15. b5 {[%clk 0:02:39]}  Nb8 {[%clk 0:02:26]} 16. Qb3 {[%clk 0:02:30]}  Nbd7 {[%clk 0:02:23]} 17. Be3 {[%clk 0:02:26]}  e6 {[%clk 0:02:17]} 18. Na6 {[%clk 0:02:10]}  Qb6 {[%clk 0:02:06]} 19. Qa4 {[%clk 0:01:57]}  Ne4 {[%clk 0:02:00]} 20. Nd2 {[%clk 0:01:40]}  Rfc8 {[%clk 0:01:47]} 21. f3 {[%clk 0:01:32]}  Nd6 {[%clk 0:01:41]} 22. Bf2 {[%clk 0:01:28]}  Bf8 {[%clk 0:01:38]} 23. g4 {[%clk 0:01:25]}  Nxb5 {[%clk 0:01:11]} 24. Bxb5 {[%clk 0:01:22]}  Bxa3 {[%clk 0:01:09]} 25. Bxd7 {[%clk 0:01:22]}  Rxc3 {[%clk 0:00:53]} 26. gxf5 {[%clk 0:01:21]}  gxf5 {[%clk 0:00:50]} 27. Nc5 {[%clk 0:01:16]}  Bb4 {[%clk 0:00:46]} 28. Kh1 {[%clk 0:01:06]}  Kh8 {[%clk 0:00:45]} 29. Bh4 {[%clk 0:01:02]}  h6 {[%clk 0:00:31]} 30. Bf6+ {[%clk 0:01:00]}  Kh7 {[%clk 0:00:31]} 31. Be8 {[%clk 0:00:54]}  Ra7 {[%clk 0:00:20]} 32. Rg1 {[%clk 0:00:51]}  h5 {[%clk 0:00:20]} 33. Qd1 {[%clk 0:00:35]}  e5 {[%clk 0:00:13]} 34. Rg7+ {[%clk 0:00:24]}  Kh6 {[%clk 0:00:12]} 35. Qg1 {[%clk 0:00:22]}  Qxf6 {[%clk 0:00:09]} 36. Rg8 {[%clk 0:00:16]}  e4 {[%clk 0:00:08]} 37. Nd7 {[%clk 0:00:14]}  Rxd7 {[%clk 0:00:08]} 38. Bxd7 {[%clk 0:00:14]}  e3 {[%clk 0:00:08]} 39. Nb1 {[%clk 0:00:11]}  e2 {[%clk 0:00:03]} 40. Nxc3 {[%clk 0:00:08]}  Bxc3 {[%clk 0:00:04]} 41. Re8 {[%clk 0:00:08]}  e1=Q {[%clk 0:00:03]} 42. Rxe1 {[%clk 0:00:08]}  Bxe1 {[%clk 0:00:03]} 43. Qxe1 {[%clk 0:00:08]}  Kg5 {[%clk 0:00:02]} 44. Qd2+ {[%clk 0:00:07]}  f4 {[%clk 0:00:02]} 45. Bh3 {[%clk 0:00:06]}  Qb6 {[%clk 0:00:02]} 46. Qg2+ {[%clk 0:00:05]}  Kh6 {[%clk 0:00:01]} 47. Qd2 {[%clk 0:00:05]}  a4 {[%clk 0:00:02]} 48. Qxf4+ {[%clk 0:00:04]}  Kg7 {[%clk 0:00:02]} 49. Qg5+ {[%clk 0:00:04]}  Qg6 {[%clk 0:00:02]} 50. Qe5+ {[%clk 0:00:03]}  Qf6 {[%clk 0:00:02]} 51. Qe3 {[%clk 0:00:03]}  Qd6 {[%clk 0:00:01]} 52. Bf5 {[%clk 0:00:03]}  a3 {[%clk 0:00:02]} 53. Qg5+ {[%clk 0:00:02]}  Kf8 {[%clk 0:00:02]} 54. Qh6+ {[%clk 0:00:02]}  Qxh6 {[%clk 0:00:01]} 0-1


[Site "https://www.chess.com"]

[Event "Titled Tuesday Blitz January 25 2022"]
[White "Loy, Konstantin"]
[Black "Pultinevicius, Paulius"]
[WhiteFideId "14122499"]
[BlackFideId "12809390"]
[WhiteElo "2084"]
[BlackElo "2413"]
[Result "0-1"]
[Round "01"]
[TimeControl "180+1"]
[Date "2022.01.26"]
[WhiteClock "0:00:02"]
[BlackClock "0:00:48"]

1. e4 {[%clk 0:02:51]}  e5 {[%clk 0:02:59]} 2. Nf3 {[%clk 0:02:49]}  Nf6 {[%clk 0:02:59]} 3. Nxe5 {[%clk 0:02:46]}  d6 {[%clk 0:02:59]} 4. Nf3 {[%clk 0:02:42]}  Nxe4 {[%clk 0:03:00]} 5. d4 {[%clk 0:02:42]}  d5 {[%clk 0:03:00]} 6. Bd3 {[%clk 0:02:42]}  Bd6 {[%clk 0:03:00]} 7. O-O {[%clk 0:02:42]}  O-O {[%clk 0:02:59]} 8. c4 {[%clk 0:02:42]}  c6 {[%clk 0:02:59]} 9. Nc3 {[%clk 0:02:40]}  Nxc3 {[%clk 0:02:56]} 10. bxc3 {[%clk 0:02:38]}  dxc4 {[%clk 0:02:56]} 11. Bxc4 {[%clk 0:02:38]}  Bf5 {[%clk 0:02:57]} 12. Bg5 {[%clk 0:02:33]}  Qa5 {[%clk 0:02:57]} 13. Qd2 {[%clk 0:02:28]}  Nd7 {[%clk 0:02:55]} 14. Bd3 {[%clk 0:02:11]}  Rfe8 {[%clk 0:02:51]} 15. Bh4 {[%clk 0:02:05]}  Nb6 {[%clk 0:02:40]} 16. Bg3 {[%clk 0:02:02]}  Bxg3 {[%clk 0:02:38]} 17. hxg3 {[%clk 0:02:02]}  Bxd3 {[%clk 0:02:25]} 18. Qxd3 {[%clk 0:02:03]}  Qd5 {[%clk 0:02:22]} 19. a4 {[%clk 0:01:51]}  Nc4 {[%clk 0:02:20]} 20. Rab1 {[%clk 0:01:46]}  b5 {[%clk 0:02:10]} 21. axb5 {[%clk 0:01:45]}  cxb5 {[%clk 0:02:11]} 22. Rfe1 {[%clk 0:01:41]}  a5 {[%clk 0:02:05]} 23. Rxe8+ {[%clk 0:01:31]}  Rxe8 {[%clk 0:02:06]} 24. Nd2 {[%clk 0:01:27]}  Nxd2 {[%clk 0:01:57]} 25. Qxd2 {[%clk 0:01:28]}  a4 {[%clk 0:01:57]} 26. Qb2 {[%clk 0:01:20]}  Qf5 {[%clk 0:01:36]} 27. Rd1 {[%clk 0:00:34]}  Rd8 {[%clk 0:01:04]} 28. Qb4 {[%clk 0:00:28]}  h6 {[%clk 0:01:01]} 29. Rb1 {[%clk 0:00:20]}  Re8 {[%clk 0:00:56]} 30. Rd1 {[%clk 0:00:19]}  Re2 {[%clk 0:00:56]} 31. Rf1 {[%clk 0:00:16]}  Qd3 {[%clk 0:00:52]} 32. Qc5 {[%clk 0:00:09]}  Rc2 {[%clk 0:00:50]} 33. Rb1 {[%clk 0:00:02]}  Rxc3 {[%clk 0:00:48]} 34. Qxb5 {[%clk 0:00:02]}  Rc1+ {[%clk 0:00:48]} 0-1


[Site "https://www.chess.com"]

[Event "Titled Tuesday Blitz January 25 2022"]
[White "Maksimovic, Bojan"]
[Black "Redzisz, Michal"]
[WhiteFideId "14408120"]
[BlackFideId "21816107"]
[WhiteElo "2450"]
[BlackElo "1961"]
[Result "1-0"]
[Round "01"]
[TimeControl "180+1"]
[Date "2022.01.26"]
[WhiteClock "0:00:06"]
[BlackClock "0:00:18"]

1. e4 {[%clk 0:02:58]}  c5 {[%clk 0:02:58]} 2. Nf3 {[%clk 0:02:57]}  e6 {[%clk 0:02:59]} 3. d4 {[%clk 0:02:58]}  cxd4 {[%clk 0:02:59]} 4. Nxd4 {[%clk 0:02:59]}  Nc6 {[%clk 0:03:00]} 5. Nc3 {[%clk 0:02:58]}  Qc7 {[%clk 0:03:00]} 6. Nxc6 {[%clk 0:02:52]}  bxc6 {[%clk 0:03:00]} 7. Bd3 {[%clk 0:02:52]}  d5 {[%clk 0:03:00]} 8. O-O {[%clk 0:02:52]}  Bd6 {[%clk 0:02:59]} 9. f4 {[%clk 0:02:50]}  Ne7 {[%clk 0:02:59]} 10. Qh5 {[%clk 0:02:44]}  g6 {[%clk 0:02:30]} 11. Qh6 {[%clk 0:02:42]}  Bb7 {[%clk 0:02:28]} 12. Be3 {[%clk 0:02:34]}  O-O-O {[%clk 0:01:46]} 13. Kh1 {[%clk 0:02:23]}  f5 {[%clk 0:01:38]} 14. e5 {[%clk 0:02:21]}  Bb4 {[%clk 0:01:38]} 15. Ne2 {[%clk 0:01:37]}  c5 {[%clk 0:01:34]} 16. c3 {[%clk 0:01:33]}  Ba5 {[%clk 0:01:30]} 17. b4 {[%clk 0:01:28]}  Bb6 {[%clk 0:01:26]} 18. bxc5 {[%clk 0:01:22]}  Bxc5 {[%clk 0:01:27]} 19. Bxc5 {[%clk 0:01:22]}  Qxc5 {[%clk 0:01:28]} 20. Nd4 {[%clk 0:01:23]}  Kd7 {[%clk 0:01:14]} 21. Rab1 {[%clk 0:00:49]}  Rb8 {[%clk 0:01:14]} 22. Bb5+ {[%clk 0:00:33]}  Bc6 {[%clk 0:01:08]} 23. Nxc6 {[%clk 0:00:15]}  Rxb5 {[%clk 0:01:08]} 24. Qg7 {[%clk 0:00:09]}  Rxb1 {[%clk 0:00:29]} 25. Rxb1 {[%clk 0:00:09]}  Rc8 {[%clk 0:00:22]} 26. Nxe7 {[%clk 0:00:07]}  Qxc3 {[%clk 0:00:17]} 27. Nxc8+ {[%clk 0:00:05]}  Kxc8 {[%clk 0:00:17]} 28. Qb7+ {[%clk 0:00:05]}  Kd8 {[%clk 0:00:17]} 29. Qb8+ {[%clk 0:00:06]}  Kd7 {[%clk 0:00:18]} 30. Rb7+ {[%clk 0:00:06]}  Kc6 {[%clk 0:00:18]} 31. Qc7# {[%clk 0:00:06]} 1-0


[Site "https://www.chess.com"]

[Event "Titled Tuesday Blitz January 25 2022"]
[White "Martinez Alcantara, Jose Eduardo"]
[Black "Perera Alfonso, Rene Humberto"]
[WhiteFideId "3805662"]
[BlackFideId "3514722"]
[WhiteElo "2690"]
[BlackElo "2313"]
[Result "1-0"]
[Round "01"]
[TimeControl "180+1"]
[Date "2022.01.26"]
[WhiteClock "0:00:11"]
[BlackClock "0:00:02"]

1. e4 {[%clk 0:03:00]}  c5 {[%clk 0:02:58]} 2. Nf3 {[%clk 0:03:00]}  d6 {[%clk 0:02:58]} 3. c3 {[%clk 0:03:01]}  Nf6 {[%clk 0:02:57]} 4. h3 {[%clk 0:03:02]}  Nc6 {[%clk 0:02:57]} 5. Bd3 {[%clk 0:03:02]}  g5 {[%clk 0:02:56]} 6. Bc2 {[%clk 0:03:02]}  g4 {[%clk 0:02:56]} 7. hxg4 {[%clk 0:03:03]}  Bxg4 {[%clk 0:02:56]} 8. d3 {[%clk 0:03:03]}  Qc7 {[%clk 0:02:55]} 9. Bf4 {[%clk 0:03:02]}  O-O-O {[%clk 0:02:52]} 10. Nbd2 {[%clk 0:03:02]}  e5 {[%clk 0:02:52]} 11. Bg5 {[%clk 0:03:01]}  Be7 {[%clk 0:02:52]} 12. Bxf6 {[%clk 0:03:01]}  Bxf6 {[%clk 0:02:52]} 13. Bb3 {[%clk 0:02:54]}  Be6 {[%clk 0:02:46]} 14. Bxe6+ {[%clk 0:02:36]}  fxe6 {[%clk 0:02:47]} 15. Qe2 {[%clk 0:02:37]}  d5 {[%clk 0:02:45]} 16. O-O-O {[%clk 0:02:37]}  Kb8 {[%clk 0:02:44]} 17. Kb1 {[%clk 0:02:37]}  h5 {[%clk 0:02:38]} 18. g3 {[%clk 0:02:37]}  a6 {[%clk 0:02:33]} 19. Nb3 {[%clk 0:02:35]}  Qb6 {[%clk 0:02:23]} 20. c4 {[%clk 0:02:22]}  Ka7 {[%clk 0:01:55]} 21. Rc1 {[%clk 0:02:18]}  dxe4 {[%clk 0:01:46]} 22. Qxe4 {[%clk 0:02:16]}  a5 {[%clk 0:01:39]} 23. Na1 {[%clk 0:01:48]}  Nd4 {[%clk 0:01:33]} 24. Nc2 {[%clk 0:01:45]}  Nxc2 {[%clk 0:01:27]} 25. Rxc2 {[%clk 0:01:43]}  Qd6 {[%clk 0:01:27]} 26. Rd2 {[%clk 0:01:32]}  Rdg8 {[%clk 0:01:26]} 27. Rdd1 {[%clk 0:01:28]}  Rg4 {[%clk 0:01:25]} 28. Qe2 {[%clk 0:01:29]}  Rg7 {[%clk 0:01:02]} 29. Nd2 {[%clk 0:01:27]}  h4 {[%clk 0:00:59]} 30. Ne4 {[%clk 0:01:27]}  Qe7 {[%clk 0:00:59]} 31. Qe3 {[%clk 0:01:18]}  b6 {[%clk 0:00:57]} 32. gxh4 {[%clk 0:01:11]}  Rxh4 {[%clk 0:00:55]} 33. Rxh4 {[%clk 0:01:10]}  Bxh4 {[%clk 0:00:56]} 34. Rh1 {[%clk 0:01:11]}  Bg5 {[%clk 0:00:23]} 35. Qf3 {[%clk 0:01:02]}  Bf4 {[%clk 0:00:22]} 36. Nc3 {[%clk 0:01:01]}  Qb7 {[%clk 0:00:20]} 37. Ne4 {[%clk 0:00:44]}  Rh7 {[%clk 0:00:17]} 38. Rg1 {[%clk 0:00:41]}  Rg7 {[%clk 0:00:17]} 39. Rd1 {[%clk 0:00:41]}  Rh7 {[%clk 0:00:15]} 40. a3 {[%clk 0:00:41]}  Rh2 {[%clk 0:00:15]} 41. Qg4 {[%clk 0:00:38]}  Qd7 {[%clk 0:00:12]} 42. Ka2 {[%clk 0:00:37]}  Rh7 {[%clk 0:00:11]} 43. Nc3 {[%clk 0:00:36]}  Rg7 {[%clk 0:00:11]} 44. Qh3 {[%clk 0:00:36]}  Rh7 {[%clk 0:00:08]} 45. Nb5+ {[%clk 0:00:36]}  Ka6 {[%clk 0:00:08]} 46. Qf3 {[%clk 0:00:33]}  Qb7 {[%clk 0:00:08]} 47. Qg4 {[%clk 0:00:33]}  Rh2 {[%clk 0:00:06]} 48. Rf1 {[%clk 0:00:13]}  Rh6 {[%clk 0:00:06]} 49. Qg8 {[%clk 0:00:12]}  Rh7 {[%clk 0:00:05]} 50. Nd6 {[%clk 0:00:10]}  Qd7 {[%clk 0:00:05]} 51. Qa8+ {[%clk 0:00:10]}  Qa7 {[%clk 0:00:04]} 52. Qc8+ {[%clk 0:00:11]}  Rb7 {[%clk 0:00:03]} 53. Qc6 {[%clk 0:00:11]}  Rc7 {[%clk 0:00:02]} 54. Qb5# {[%clk 0:00:11]} 1-0


[Site "https://www.chess.com"]

[Event "Titled Tuesday Blitz January 25 2022"]
[White "Mickiewicz, Piotr"]
[Black "Maghsoodloo, Parham"]
[WhiteFideId "1114891"]
[BlackFideId "12539929"]
[WhiteElo "2266"]
[BlackElo "2630"]
[Result "0-1"]
[Round "01"]
[TimeControl "180+1"]
[Date "2022.01.26"]
[WhiteClock "0:00:01"]
[BlackClock "0:01:41"]

1. e4 {[%clk 0:02:57]}  e5 {[%clk 0:02:59]} 2. Nf3 {[%clk 0:02:56]}  Nc6 {[%clk 0:02:57]} 3. Bb5 {[%clk 0:02:56]}  a6 {[%clk 0:02:53]} 4. Ba4 {[%clk 0:02:57]}  Nf6 {[%clk 0:02:53]} 5. O-O {[%clk 0:02:57]}  Be7 {[%clk 0:02:51]} 6. Re1 {[%clk 0:02:53]}  b5 {[%clk 0:02:47]} 7. Bb3 {[%clk 0:02:53]}  O-O {[%clk 0:02:46]} 8. d3 {[%clk 0:02:53]}  d6 {[%clk 0:02:43]} 9. h3 {[%clk 0:02:50]}  Be6 {[%clk 0:02:43]} 10. c3 {[%clk 0:02:48]}  h6 {[%clk 0:02:36]} 11. Nbd2 {[%clk 0:02:40]}  Qd7 {[%clk 0:02:32]} 12. Nf1 {[%clk 0:02:37]}  Rfe8 {[%clk 0:02:31]} 13. Ng3 {[%clk 0:02:37]}  Bf8 {[%clk 0:02:30]} 14. d4 {[%clk 0:02:29]}  Bxb3 {[%clk 0:02:21]} 15. Qxb3 {[%clk 0:02:26]}  g6 {[%clk 0:02:14]} 16. d5 {[%clk 0:02:22]}  Na5 {[%clk 0:02:12]} 17. Qc2 {[%clk 0:02:17]}  c6 {[%clk 0:02:12]} 18. dxc6 {[%clk 0:02:16]}  Qxc6 {[%clk 0:02:12]} 19. Bd2 {[%clk 0:01:56]}  Nc4 {[%clk 0:02:12]} 20. Rad1 {[%clk 0:01:54]}  Rad8 {[%clk 0:02:06]} 21. Bc1 {[%clk 0:01:52]}  d5 {[%clk 0:02:06]} 22. exd5 {[%clk 0:01:52]}  Nxd5 {[%clk 0:02:07]} 23. b3 {[%clk 0:01:39]}  Ncb6 {[%clk 0:02:06]} 24. Nxe5 {[%clk 0:01:09]}  Qxc3 {[%clk 0:02:05]} 25. Qxc3 {[%clk 0:01:04]}  Nxc3 {[%clk 0:02:06]} 26. Rxd8 {[%clk 0:01:04]}  Rxd8 {[%clk 0:02:07]} 27. Bb2 {[%clk 0:00:28]}  Nxa2 {[%clk 0:02:03]} 28. Nc6 {[%clk 0:00:23]}  Rd2 {[%clk 0:01:51]} 29. Bf6 {[%clk 0:00:20]}  Rc2 {[%clk 0:01:43]} 30. Ne7+ {[%clk 0:00:19]}  Kh7 {[%clk 0:01:43]} 31. h4 {[%clk 0:00:14]}  Rc1 {[%clk 0:01:43]} 32. Kf1 {[%clk 0:00:09]}  Rxe1+ {[%clk 0:01:41]} 33. Kxe1 {[%clk 0:00:10]}  Nc1 {[%clk 0:01:42]} 34. b4 {[%clk 0:00:08]}  Nd3+ {[%clk 0:01:42]} 35. Ke2 {[%clk 0:00:08]}  Nxb4 {[%clk 0:01:43]} 36. Ne4 {[%clk 0:00:07]}  N6d5 {[%clk 0:01:41]} 37. Nxd5 {[%clk 0:00:06]}  Nxd5 {[%clk 0:01:42]} 38. Bd4 {[%clk 0:00:06]}  f5 {[%clk 0:01:42]} 39. Nc5 {[%clk 0:00:01]}  Bxc5 {[%clk 0:01:42]} 40. Bxc5 {[%clk 0:00:02]}  Nf4+ {[%clk 0:01:39]} 41. Kf3 {[%clk 0:00:01]}  Ne6 {[%clk 0:01:40]} 42. Be3 {[%clk 0:00:01]}  h5 {[%clk 0:01:41]} 0-1


[Site "https://www.chess.com"]

[Event "Titled Tuesday Blitz January 25 2022"]
[White "Nesterov, Arseniy"]
[Black "Ortega Amarelle, Mariano"]
[WhiteFideId "24198455"]
[BlackFideId "3504301"]
[WhiteElo "2489"]
[BlackElo "2389"]
[Result "1-0"]
[Round "01"]
[TimeControl "180+1"]
[Date "2022.01.26"]
[WhiteClock "0:00:21"]
[BlackClock "0:00:08"]

1. d4 {[%clk 0:02:58]}  Nf6 {[%clk 0:02:48]} 2. c4 {[%clk 0:02:57]}  e6 {[%clk 0:02:47]} 3. Nc3 {[%clk 0:02:56]}  d5 {[%clk 0:02:47]} 4. Nf3 {[%clk 0:02:57]}  dxc4 {[%clk 0:02:45]} 5. e4 {[%clk 0:02:56]}  Bb4 {[%clk 0:02:44]} 6. Bxc4 {[%clk 0:02:55]}  Nxe4 {[%clk 0:02:43]} 7. O-O {[%clk 0:02:54]}  Nxc3 {[%clk 0:02:43]} 8. bxc3 {[%clk 0:02:09]}  Bd6 {[%clk 0:02:42]} 9. Re1 {[%clk 0:01:24]}  O-O {[%clk 0:02:41]} 10. Ne5 {[%clk 0:01:21]}  Nd7 {[%clk 0:02:27]} 11. Bf4 {[%clk 0:01:10]}  Bxe5 {[%clk 0:02:04]} 12. dxe5 {[%clk 0:01:04]}  Nb6 {[%clk 0:02:04]} 13. Bd3 {[%clk 0:01:04]}  Qh4 {[%clk 0:01:01]} 14. Bg3 {[%clk 0:00:49]}  Qa4 {[%clk 0:00:32]} 15. Qh5 {[%clk 0:00:42]}  h6 {[%clk 0:00:19]} 16. Re4 {[%clk 0:00:36]}  Qa3 {[%clk 0:00:19]} 17. Rg4 {[%clk 0:00:25]}  Qxc3 {[%clk 0:00:20]} 18. Rd1 {[%clk 0:00:24]}  Kh8 {[%clk 0:00:12]} 19. Bf4 {[%clk 0:00:23]}  Rd8 {[%clk 0:00:08]} 20. Bxh6 {[%clk 0:00:21]} 1-0


[Site "https://www.chess.com"]

[Event "Titled Tuesday Blitz January 25 2022"]
[White "Ozates, Tuna"]
[Black "Vokhidov, Shamsiddin"]
[WhiteFideId "6354521"]
[BlackFideId "14204223"]
[WhiteElo "1872"]
[BlackElo "2611"]
[Result "0-1"]
[Round "01"]
[TimeControl "180+1"]
[Date "2022.01.26"]
[WhiteClock "0:00:13"]
[BlackClock "0:01:23"]

1. e4 {[%clk 0:03:00]}  c5 {[%clk 0:03:00]} 2. Nf3 {[%clk 0:03:00]}  d6 {[%clk 0:03:00]} 3. Bb5+ {[%clk 0:03:00]}  Nd7 {[%clk 0:03:00]} 4. d4 {[%clk 0:02:55]}  cxd4 {[%clk 0:03:01]} 5. Nxd4 {[%clk 0:02:54]}  Nf6 {[%clk 0:03:00]} 6. Bd3 {[%clk 0:02:54]}  Nc5 {[%clk 0:03:00]} 7. f3 {[%clk 0:02:50]}  e5 {[%clk 0:02:59]} 8. Bb5+ {[%clk 0:02:47]}  Bd7 {[%clk 0:02:56]} 9. Bxd7+ {[%clk 0:02:47]}  Qxd7 {[%clk 0:02:57]} 10. Nf5 {[%clk 0:02:47]}  d5 {[%clk 0:02:54]} 11. Nc3 {[%clk 0:02:39]}  d4 {[%clk 0:02:43]} 12. Ne2 {[%clk 0:02:39]}  g6 {[%clk 0:02:40]} 13. Bg5 {[%clk 0:02:33]}  Nfxe4 {[%clk 0:02:37]} 14. fxe4 {[%clk 0:02:27]}  Nxe4 {[%clk 0:02:35]} 15. O-O {[%clk 0:02:11]}  gxf5 {[%clk 0:02:34]} 16. Bh4 {[%clk 0:02:08]}  Rg8 {[%clk 0:02:32]} 17. Ng3 {[%clk 0:02:06]}  Nxg3 {[%clk 0:02:29]} 18. hxg3 {[%clk 0:02:07]}  Rg4 {[%clk 0:02:23]} 19. Qf3 {[%clk 0:02:03]}  f4 {[%clk 0:02:22]} 20. Rae1 {[%clk 0:02:02]}  Bg7 {[%clk 0:02:21]} 21. Qe4 {[%clk 0:01:55]}  f5 {[%clk 0:02:19]} 22. Qd3 {[%clk 0:01:27]}  Kf8 {[%clk 0:02:11]} 23. Qb3 {[%clk 0:01:10]}  Re8 {[%clk 0:02:05]} 24. Qa3+ {[%clk 0:01:03]}  Kg8 {[%clk 0:02:03]} 25. Rf3 {[%clk 0:00:55]}  Re6 {[%clk 0:01:53]} 26. Qxa7 {[%clk 0:00:51]}  h6 {[%clk 0:01:50]} 27. Qb8+ {[%clk 0:00:46]}  Kh7 {[%clk 0:01:49]} 28. Rb3 {[%clk 0:00:33]}  b6 {[%clk 0:01:44]} 29. Ra3 {[%clk 0:00:26]}  fxg3 {[%clk 0:01:27]} 30. Ra7 {[%clk 0:00:23]}  Qd6 {[%clk 0:01:25]} 31. Qb7 {[%clk 0:00:18]}  d3 {[%clk 0:01:23]} 32. cxd3 {[%clk 0:00:14]}  Qd4+ {[%clk 0:01:23]} 33. Kf1 {[%clk 0:00:13]}  Qf2# {[%clk 0:01:23]} 0-1


[Site "https://www.chess.com"]